fUSD/lending_fUSD_20250623
["ID","MTS","AMOUNT","RATE_DAILY","PERIOD"]
[367113135,1750662703376,-490.0,0.00029041,3]
[367113136,1750662703387,-490.0,0.00029041,3]
[367113137,1750662703397,-490.0,0.00029041,3]
[367113138,1750662703406,-644.39,0.00029041,3]
[367113139,1750662703416,-617.7,0.00029041,3]
[367113140,1750662703425,-826.8,0.00029041,3]
[367113141,1750662703435,-490.0,0.00029041,3]
[367113142,1750662703444,-490.0,0.00029041,3]
[367113143,1750662703454,-311.57258097,0.00029041,3]
[367113144,1750662703464,-490.0,0.00029041,3]
[367113145,1750662703474,-626.46,0.00029041,3]
[367113146,1750662703484,-490.0,0.00029041,3]
[367113147,1750662703494,-490.0,0.00029041,3]
[367113148,1750662703503,-841.55,0.00029041,3]
[367113149,1750662703515,-625.27,0.00029041,3]
[367113150,1750662703530,-525.09734163,0.00029041,3]
[367113151,1750662703539,-1584.78,0.00029041,3]
[367113152,1750662703549,-490.0,0.00029041,3]
[367113153,1750662703560,-490.0,0.00029041,3]
[367113154,1750662703569,-490.0,0.00029041,3]
[367113155,1750662703579,-490.0,0.00029041,3]
[367113156,1750662703589,-1089.25,0.00029041,3]
[367113157,1750662703598,-914.26,0.00029041,3]
[367113158,1750662703609,-777.39,0.00029041,3]
[367113159,1750662703619,-667.3,0.00029041,3]
[367113160,1750662703628,-1172.55,0.00029041,3]
[367113161,1750662703638,-563.6,0.00029041,3]
[367113162,1750662703647,-857.69,0.00029041,3]
[367113163,1750662703657,-601.26,0.00029041,3]
[367113164,1750662703666,-1486.14,0.00029041,3]
[367113165,1750662703676,-654.18,0.00029041,3]
[367113166,1750662703685,-641.56,0.00029041,3]
[367113167,1750662703695,-2328.1,0.00029041,3]
[367113168,1750662703705,-490.0,0.00029041,3]
[367113169,1750662703715,-1714.75,0.00029041,3]
[367113170,1750662703725,-490.0,0.00029041,3]
[367113171,1750662703734,-834.55,0.00029041,3]
[367113172,1750662703744,-2984.61,0.00029041,3]
[367113173,1750662703753,-1666.5,0.00029041,3]
[367113174,1750662703763,-490.0,0.00029041,2]
[367113175,1750662703772,-579.07,0.00029041,3]
[367113176,1750662703782,-774.87,0.00029041,3]
[367113177,1750662703792,-198.016965,0.00029041,3]
[367113178,1750662703802,-490.0,0.00029041,3]
[367113179,1750662703811,-523.64,0.00029041,3]
[367113180,1750662703821,-1685.1,0.00029041,3]
[367113181,1750662703831,-490.0,0.00029041,3]
[367113182,1750662703840,-685.83,0.00029041,3]
[367113183,1750662703849,-845.32,0.00029041,3]
[367113184,1750662703860,-490.0,0.00029041,3]
[367113185,1750662703870,-490.0,0.00029041,3]
[367113186,1750662703879,-1003.013708,0.00029041,3]
[367113187,1750662703889,-407.03,0.00029041,3]
[367113188,1750662703899,-490.0,0.00029041,3]
[367113189,1750662703909,-490.0,0.00029041,3]
[367113190,1750662703919,-490.0,0.00029041,3]
[367113191,1750662703928,-620.28,0.00029041,3]
[367113192,1750662703938,-490.0,0.00029041,3]
[367113193,1750662703947,-692.18,0.00029041,3]
[367113194,1750662703957,-583.42,0.00029041,3]
[367113195,1750662703967,-1382.11,0.00029041,3]
[367113196,1750662703977,-490.0,0.00029041,3]
[367113197,1750662703986,-957.53,0.00029041,3]
[367113198,1750662703996,-1520.85,0.00029041,3]
[367113199,1750662704006,-852.4,0.00029041,3]
[367113200,1750662704016,-388.27061297,0.00029041,3]
[367113201,1750662704026,-1514.64,0.00029041,3]
[367113202,1750662704038,-413.07940181,0.00029041,3]
[367113203,1750662704047,-238.14493284,0.00029041,3]
[367113204,1750662704057,-564.98,0.00029041,3]
[367113205,1750662704067,-1413.76,0.00029041,3]
[367113206,1750662704077,-621.88,0.00029041,3]
[367113207,1750662704087,-490.0,0.00029041,3]
[367113208,1750662704097,-643.76,0.00029041,3]
[367113209,1750662704108,-1486.85,0.00029041,3]
[367113210,1750662704118,-490.0,0.00029041,3]
[367113211,1750662704128,-605.57,0.00029041,3]
[367113212,1750662704138,-765.6,0.00029041,3]
[367113213,1750662704149,-490.0,0.00029041,3]
[367113214,1750662704159,-635.87,0.00029041,3]
[367113215,1750662704168,-490.0,0.00029041,3]
[367113216,1750662704178,-521.1,0.00029041,3]
[367113217,1750662704187,-748.29,0.00029041,3]
[367113218,1750662704197,-559.87,0.00029041,3]
[367113219,1750662704207,-702.32,0.00029041,3]
[367113220,1750662704216,-490.0,0.00029041,3]
[367113221,1750662704225,-490.0,0.00029041,3]
[367113222,1750662704234,-356.5739278,0.00029041,3]
[367113223,1750662704244,-1437.96,0.00029041,3]
[367113224,1750662704253,-933.29,0.00029041,3]
[367113225,1750662704263,-623.74,0.00029041,3]
[367113226,1750662704272,-1229.23,0.00029041,3]
[367113227,1750662704281,-490.0,0.00029041,3]
[367113228,1750662704291,-490.0,0.00029041,3]
[367113229,1750662704300,-1240.62,0.00029041,3]
[367113230,1750662704310,-1044.91,0.00029041,3]
[367113231,1750662704319,-636.16,0.00029041,3]
[367113232,1750662704328,-490.92,0.00029041,3]
[367113233,1750662704337,-583.46,0.00029041,3]
[367113234,1750662704346,-1648.05,0.00029041,3]
[367113235,1750662704356,-745.48,0.00029041,3]
[367113236,1750662704365,-1819.02,0.00029041,3]
[367113237,1750662704374,-361.19345972,0.00029041,3]
[367113238,1750662704383,-1025.74,0.00029041,3]
[367113239,1750662704393,-490.0,0.00029041,3]
[367113240,1750662704402,-507.64,0.00029041,3]
[367113241,1750662704412,-1801.52,0.00029041,3]
[367113242,1750662704421,-1776.13,0.00029041,3]
[367113243,1750662704431,-1449.74,0.00029041,3]
[367113244,1750662704440,-803.35,0.00029041,3]
[367113245,1750662704450,-1305.95,0.00029041,3]
[367113246,1750662704460,-825.12,0.00029041,3]
[367113247,1750662704470,-490.0,0.00029041,3]
[367113248,1750662704479,-295.74768614,0.00029041,3]
[367113249,1750662704489,-553.17,0.00029041,3]
[367113250,1750662704498,-490.0,0.00029041,3]
[367113251,1750662704508,-1184.6,0.00029041,3]
[367113252,1750662704519,-490.0,0.00029041,3]
[367113253,1750662704528,-2077.31,0.00029041,3]
[367113254,1750662704537,-1017.63,0.00029041,3]
[367113255,1750662704546,-903.1,0.00029041,3]
[367113256,1750662704557,-840.82,0.00029041,3]
[367113257,1750662704566,-1228.76,0.00029041,3]
[367113258,1750662704575,-972.48,0.00029041,3]
[367113259,1750662704584,-490.0,0.00029041,3]
[367113260,1750662704594,-698.82,0.00029041,3]
[367113261,1750662704605,-614.18,0.00029041,3]
[367113262,1750662704614,-1683.09,0.00029041,3]
[367113263,1750662704623,-1068.5,0.00029041,3]
[367113264,1750662704633,-492.43,0.00029041,3]
[367113265,1750662704643,-899.45,0.00029041,3]
[367113266,1750662704652,-490.0,0.00029041,3]
[367113267,1750662704661,-1018.31,0.00029041,3]
[367113268,1750662704671,-490.0,0.00029041,3]
[367113269,1750662704680,-361.29874041,0.00029041,3]
[367113270,1750662704689,-1636.32,0.00029041,3]
[367113271,1750662704699,-490.0,0.00029041,3]
[367113272,1750662704708,-1034.85,0.00029041,3]
[367113273,1750662704718,-636.43,0.00029041,3]
[367113274,1750662704727,-514.73,0.00029041,3]
[367113275,1750662704736,-490.0,0.00029041,3]
[367113276,1750662704745,-490.0,0.00029041,3]
[367113277,1750662704755,-1597.54,0.00029041,3]
[367113278,1750662704764,-490.0,0.00029041,3]
[367113279,1750662704773,-490.0,0.00029041,3]
[367113280,1750662704782,-490.0,0.00029041,3]
[367113281,1750662704792,-878.08,0.00029041,3]
[367113282,1750662704801,-490.0,0.00029041,3]
[367113283,1750662704811,-519.20142542,0.00029041,3]
[367113284,1750662704821,-933.44,0.00029041,3]
[367113285,1750662704831,-490.0,0.00029041,3]
[367113286,1750662704840,-490.0,0.00029041,3]
[367113287,1750662704849,-980.14,0.00029041,3]
[367113288,1750662704862,-1351.29,0.00029041,3]
[367113289,1750662704871,-490.0,0.00029041,3]
[367113290,1750662704881,-490.0,0.00029041,3]
[367113291,1750662704890,-1021.72,0.00029041,3]
[367113292,1750662704900,-490.0,0.00029041,3]
[367113293,1750662704910,-490.0,0.00029041,3]
[367113294,1750662704919,-2515.92,0.00029041,3]
[367113295,1750662704929,-563.49,0.00029041,3]
[367113296,1750662704939,-718.42,0.00029041,3]
[367113297,1750662704949,-973.74,0.00029041,3]
[367113298,1750662704959,-490.0,0.00029041,3]
[367113299,1750662704969,-763.59,0.00029041,3]
[367113300,1750662704978,-490.0,0.00029041,3]
[367113301,1750662704990,-490.0,0.00029041,3]
[367113302,1750662704999,-1171.08,0.00029041,3]
[367113303,1750662705009,-490.0,0.00029041,3]
[367113304,1750662705019,-806.32,0.00029041,3]
[367113305,1750662705030,-1313.3,0.00029041,3]
[367113306,1750662705039,-490.0,0.00029041,3]
[367113307,1750662705053,-490.0,0.00029041,3]
[367113308,1750662705063,-1866.63,0.00029041,3]
[367113309,1750662705072,-783.39,0.00029041,3]
[367113310,1750662705081,-1408.5,0.00029041,3]
[367113311,1750662705091,-760.51,0.00029041,3]
[367113312,1750662705101,-640.07,0.00029041,3]
[367113313,1750662705111,-1615.12,0.00029041,3]
[367113314,1750662705121,-1113.91,0.00029041,3]
[367113315,1750662705131,-1204.57,0.00029041,3]
[367113316,1750662705140,-490.0,0.00029041,3]
[367113317,1750662705150,-852.31,0.00029041,3]
[367113318,1750662705159,-1617.57,0.00029041,3]
[367113319,1750662705168,-1344.16,0.00029041,3]
[367113320,1750662705178,-1189.28,0.00029041,3]
[367113321,1750662705187,-490.0,0.00029041,3]
[367113322,1750662705196,-924.24,0.00029041,3]
[367113323,1750662705206,-1017.87,0.00029041,3]
[367113324,1750662705216,-1327.65,0.00029041,3]
[367113325,1750662705225,-816.97,0.00029041,3]
[367113326,1750662705235,-490.0,0.00029041,3]
[367113327,1750662705245,-1505.21,0.00029041,3]
[367113328,1750662705254,-490.0,0.00029041,3]
[367113329,1750662705264,-490.0,0.00029041,3]
[367113330,1750662705274,-490.0,0.00029041,3]
[367113331,1750662705283,-995.43,0.00029041,3]
[367113332,1750662705292,-490.0,0.00029041,3]
[367113333,1750662705302,-3010.94,0.00029041,2]
[367113334,1750662705311,-1097.45,0.00029041,3]
[367113335,1750662705321,-753.53,0.00029041,3]
[367113336,1750662705331,-1037.06,0.00029041,3]
[367113337,1750662705340,-1995.53,0.00029041,3]
[367113338,1750662705351,-490.0,0.00029041,3]
[367113339,1750662705362,-660.48,0.00029041,3]
[367113340,1750662705372,-752.2,0.00029041,3]
[367113341,1750662705382,-1341.44,0.00029041,3]
[367113342,1750662705392,-490.0,0.00029041,3]
[367113343,1750662705401,-850.05,0.00029041,3]
[367113344,1750662705411,-490.0,0.00029041,3]
[367113345,1750662705420,-581.79,0.00029041,3]
[367113346,1750662705430,-507.29,0.00029041,3]
[367113347,1750662705439,-2153.23,0.00029041,3]
[367113348,1750662705449,-557.61,0.00029041,3]
[367113349,1750662705458,-490.0,0.00029041,3]
[367113350,1750662705468,-572.59,0.00029041,3]
[367113351,1750662705478,-202.80364178,0.00029041,3]
[367113352,1750662705487,-500.92999492,0.00029041,3]
[367113353,1750662705497,-490.0,0.00029041,3]
[367113354,1750662705509,-490.0,0.00029041,3]
[367113355,1750662705521,-405.71416839,0.00029041,3]
[367113356,1750662705531,-2413.05,0.00029041,3]
[367113357,1750662705541,-490.0,0.00029041,3]
[367113358,1750662705551,-490.0,0.00029041,3]
[367113359,1750662705560,-245.22130949,0.00029041,3]
[367113360,1750662705571,-566.43,0.00029041,3]
[367113361,1750662705581,-1348.78,0.00029041,3]
[367113362,1750662705591,-2316.4,0.00029041,3]
[367113363,1750662705693,-490.0,0.00029041,3]
[367113364,1750662705703,-1609.27,0.00029041,3]
[367113365,1750662705712,-569.99,0.00029041,3]
[367113366,1750662705722,-490.0,0.00029041,3]
[367113367,1750662705730,-490.0,0.00029041,3]
[367113368,1750662705740,-490.0,0.00029041,3]
[367113369,1750662705749,-861.6,0.00029041,3]
[367113370,1750662705758,-2663.87,0.00029041,3]
[367113371,1750662705767,-731.27,0.00029041,3]
[367113372,1750662705777,-490.0,0.00029041,3]
[367113373,1750662705786,-1052.0,0.00029041,3]
[367113374,1750662705795,-560.0,0.00029041,3]
[367113375,1750662705805,-1117.5,0.00029041,3]
[367113376,1750662705814,-490.0,0.00029041,3]
[367113377,1750662705824,-921.04,0.00029041,3]
[367113378,1750662705833,-783.55,0.00029041,3]
[367113379,1750662705843,-600.11,0.00029041,3]
[367113380,1750662705852,-490.0,0.00029041,3]
[367113381,1750662705863,-785.27,0.00029041,3]
[367113382,1750662705872,-1688.41,0.00029041,3]
[367113383,1750662705882,-595.61,0.00029041,3]
[367113384,1750662705891,-1726.17,0.00029041,3]
[367113385,1750662705900,-950.58,0.00029041,3]
[367113386,1750662705909,-490.0,0.00029041,3]
[367113387,1750662705919,-1953.41,0.00029041,3]
[367113388,1750662705928,-490.0,0.00029041,3]
[367113389,1750662705937,-523.44,0.00029041,3]
[367113390,1750662705946,-603.07,0.00029041,3]
[367113391,1750662705956,-1456.32,0.00029041,3]
[367113392,1750662705965,-1698.32,0.00029041,3]
[367113393,1750662705974,-501.63,0.00029041,3]
[367113394,1750662705983,-490.0,0.00029041,3]
[367113395,1750662705993,-490.0,0.00029041,3]
[367113396,1750662706003,-490.0,0.00029041,3]
[367113397,1750662706012,-1007.06,0.00029041,3]
[367113398,1750662706022,-1681.01,0.00029041,3]
[367113399,1750662706032,-1708.4,0.00029041,3]
[367113400,1750662706041,-490.0,0.00029041,3]
[367113401,1750662706051,-873.29,0.00029041,3]
[367113402,1750662706060,-1098.59,0.00029041,3]
[367113403,1750662706070,-1944.53,0.00029041,3]
[367113404,1750662706079,-490.0,0.00029041,3]
[367113405,1750662706088,-2433.81,0.00029041,3]
[367113406,1750662706097,-1247.14,0.00029041,3]
[367113407,1750662706107,-501.38,0.00029041,3]
[367113408,1750662706116,-750.42,0.00029041,3]
[367113409,1750662706125,-577.0,0.00029041,3]
[367113410,1750662706135,-662.45,0.00029041,3]
[367113411,1750662706144,-490.0,0.00029041,3]
[367113412,1750662706153,-1551.77,0.00029041,3]
[367113413,1750662706162,-1650.44,0.00029041,3]
[367113414,1750662706171,-703.59,0.00029041,3]
[367113415,1750662706179,-529.91,0.00029041,3]
[367113416,1750662706189,-490.0,0.00029041,3]
[367113417,1750662706198,-490.0,0.00029041,3]
[367113418,1750662706208,-490.0,0.00029041,3]
[367113419,1750662706218,-788.62,0.00029041,3]
[367113420,1750662706228,-912.47,0.00029041,3]
[367113421,1750662706238,-1251.29,0.00029041,3]
[367113422,1750662706249,-334.12256043,0.00029041,3]
[367113423,1750662706258,-490.0,0.00029041,3]
[367113424,1750662706268,-655.66,0.00029041,3]
[367113425,1750662706277,-675.57,0.00029041,3]
[367113426,1750662706287,-300.0,0.00029041,3]
[367113427,1750662706296,-490.0,0.00029041,3]
[367113428,1750662706306,-1664.2,0.00029041,3]
[367113429,1750662706316,-1679.9,0.00029041,3]
[367113430,1750662706325,-1433.27,0.00029041,3]
[367113431,1750662706335,-490.0,0.00029041,3]
[367113432,1750662706344,-1066.4,0.00029041,3]
[367113433,1750662706355,-572.95,0.00029041,3]
[367113434,1750662706364,-490.0,0.00029041,3]
[367113435,1750662706374,-1605.51,0.00029041,3]
[367113436,1750662706383,-187.47334233,0.00029041,3]
[367113437,1750662706393,-490.0,0.00029041,3]
[367113438,1750662706403,-1690.95,0.00029041,3]
[367113439,1750662706412,-490.0,0.00029041,3]
[367113440,1750662706421,-490.0,0.00029041,3]
[367113441,1750662706431,-1674.28,0.00029041,3]
[367113442,1750662706441,-490.0,0.00029041,3]
[367113443,1750662706451,-638.77,0.00029041,3]
[367113444,1750662706461,-1574.11,0.00029041,3]
[367113445,1750662706470,-378.81,0.00029041,3]
[367113446,1750662706480,-684.38,0.00029041,3]
[367113447,1750662706490,-1278.36,0.00029041,3]
[367113448,1750662706499,-905.6,0.00029041,3]
[367113449,1750662706508,-1682.39,0.00029041,3]
[367113450,1750662706519,-1126.22,0.00029041,3]
[367113451,1750662706528,-1410.38,0.00029041,3]
[367113452,1750662706537,-1883.69,0.00029041,3]
[367113453,1750662706546,-7415.21,0.00029041,3]
[367113454,1750662706555,-2332.56,0.00029041,3]
[367113455,1750662706565,-490.0,0.00029041,3]
[367113456,1750662706574,-490.0,0.00029041,3]
[367113457,1750662706583,-1248.93,0.00029041,3]
[367113458,1750662706593,-490.0,0.00029041,3]
[367113459,1750662706603,-1449.04,0.00029041,3]
[367113460,1750662706615,-849.69,0.00029041,3]
[367113461,1750662706624,-883.32,0.00029041,3]
[367113462,1750662706634,-490.0,0.00029041,3]
[367113463,1750662706643,-587.88,0.00029041,3]
[367113464,1750662706653,-901.3,0.00029041,3]
[367113465,1750662706663,-490.0,0.00029041,3]
[367113466,1750662706673,-1164.04,0.00029041,3]
[367113467,1750662706682,-490.0,0.00029041,3]
[367113468,1750662706691,-1753.14,0.00029041,3]
[367113469,1750662706700,-490.0,0.00029041,3]
[367113470,1750662706709,-4073.96,0.00029041,3]
[367113471,1750662706720,-10399.38,0.00029041,3]
[367113472,1750662706730,-580.67,0.00029041,3]
[367113473,1750662706739,-490.0,0.00029041,3]
[367113474,1750662706749,-1448.46,0.00029041,3]
[367113475,1750662706758,-836.73,0.00029041,3]
[367113476,1750662706767,-918.93,0.00029041,3]
[367113477,1750662706776,-526.35,0.00029041,3]
[367113478,1750662706786,-1355.08,0.00029041,3]
[367113479,1750662706795,-6824.52,0.00029041,3]
[367113480,1750662706804,-1900.51,0.00029041,3]
[367113481,1750662706814,-1016.76,0.00029041,3]
[367113482,1750662706825,-3401.6,0.00029041,3]
[367113483,1750662706835,-549.531499,0.00029041,3]
[367113484,1750662706845,-3966.47,0.00029041,3]
[367113485,1750662706857,-1741.72,0.00029041,3]
[367113486,1750662706866,-490.0,0.00029041,3]
[367113487,1750662706876,-490.0,0.00029041,3]
[367113488,1750662706885,-490.0,0.00029041,3]
[367113489,1750662706895,-909.73,0.00029041,3]
[367113490,1750662706904,-608.52,0.00029041,3]
[367113491,1750662706913,-490.0,0.00029041,3]
[367113492,1750662706924,-934.07,0.00029041,3]
[367113493,1750662706935,-4949.36,0.00029041,3]
[367113494,1750662706946,-490.0,0.00029041,3]
[367113495,1750662706956,-2915.88,0.00029041,3]
[367113496,1750662706965,-490.0,0.00029041,3]
[367113497,1750662706975,-1585.93,0.00029041,3]
[367113498,1750662706985,-490.0,0.00029041,3]
[367113499,1750662706994,-490.0,0.00029041,3]
[367113500,1750662707004,-18062.45,0.00029041,3]
[367113501,1750662707014,-814.19,0.00029041,3]
[367113502,1750662707024,-3468.99,0.00029041,3]
[367113503,1750662707034,-1570.58,0.00029041,3]
[367113504,1750662707043,-1672.97,0.00029041,3]
[367113505,1750662707052,-789.6,0.00029041,3]
[367113506,1750662707061,-798.22,0.00029041,3]
[367113507,1750662707071,-1533.06,0.00029041,3]
[367113508,1750662707081,-1681.4,0.00029041,3]
[367113509,1750662707090,-490.0,0.00029041,3]
[367113510,1750662707099,-528.64,0.00029041,3]
[367113511,1750662707110,-1108.02,0.00029041,3]
[367113512,1750662707119,-1980.76,0.00029041,3]
[367113513,1750662707129,-2594.4,0.00029041,3]
[367113514,1750662707140,-490.0,0.00029041,3]
[367113515,1750662707150,-1623.55,0.00029041,3]
[367113516,1750662707159,-490.0,0.00029041,3]
[367113517,1750662707169,-891.21,0.00029041,3]
[367113518,1750662707178,-1019.18,0.00029041,3]
[367113519,1750662707187,-1174.99,0.00029041,3]
[367113520,1750662707197,-3127.29,0.00029041,3]
[367113521,1750662707206,-490.0,0.00029041,3]
[367113522,1750662707216,-1569.21,0.00029041,3]
[367113523,1750662707226,-490.0,0.00029041,3]
[367113524,1750662707235,-1940.59,0.00029041,3]
[367113525,1750662707245,-2329.34,0.00029041,3]
[367113526,1750662707255,-664.92,0.00029041,3]
[367113527,1750662707265,-1830.85,0.00029041,3]
[367113528,1750662707274,-1700.21,0.00029041,3]
[367113529,1750662707284,-490.0,0.00029041,3]
[367113530,1750662707293,-2769.81,0.00029041,3]
[367113531,1750662707303,-490.0,0.00029041,3]
[367113532,1750662707312,-6713.02,0.00029041,3]
[367113533,1750662707322,-777.56,0.00029041,3]
[367113534,1750662707331,-2394.73,0.00029041,3]
[367113535,1750662707340,-826.09,0.00029041,3]
[367113536,1750662707349,-1294.78,0.00029041,3]
[367113537,1750662707360,-490.0,0.00029041,3]
[367113538,1750662707369,-1749.09,0.00029041,3]
[367113539,1750662707378,-760.04,0.00029041,3]
[367113540,1750662707387,-490.0,0.00029041,3]
[367113541,1750662707396,-555.71,0.00029041,3]
[367113542,1750662707406,-1626.24,0.00029041,3]
[367113543,1750662707415,-713.4,0.00029041,3]
[367113544,1750662707424,-4056.64,0.00029041,3]
[367113545,1750662707433,-490.0,0.00029041,3]
[367113546,1750662707442,-1498.64,0.00029041,3]
[367113547,1750662707451,-1457.21,0.00029041,3]
[367113548,1750662707460,-490.0,0.00029041,3]
[367113549,1750662707469,-737.54,0.00029041,3]
[367113550,1750662707478,-1307.83,0.00029041,3]
[367113551,1750662707487,-728.06,0.00029041,3]
[367113552,1750662707497,-490.0,0.00029041,3]
[367113553,1750662707506,-1832.35,0.00029041,3]
[367113554,1750662707518,-1380.67,0.00029041,3]
[367113555,1750662707528,-377.53152257,0.00029041,3]
[367113556,1750662707537,-2228.14,0.00029041,3]
[367113557,1750662707547,-490.0,0.00029041,3]
[367113558,1750662707556,-2372.02,0.00029041,3]
[367113559,1750662707566,-490.0,0.00029041,3]
[367113560,1750662707576,-3318.96,0.00029041,3]
[367113561,1750662707585,-709.01,0.00029041,3]
[367113562,1750662707595,-862.45,0.00029041,3]
[367113563,1750662707605,-788.8,0.00029041,3]
[367113564,1750662707615,-490.0,0.00029041,3]
[367113565,1750662707625,-1200.13,0.00029041,3]
[367113566,1750662707634,-1916.86,0.00029041,3]
[367113567,1750662707643,-678.77,0.00029041,3]
[367113568,1750662707652,-4654.08,0.00029041,3]
[367113569,1750662707662,-1366.52,0.00029041,3]
[367113570,1750662707671,-515.04,0.00029041,3]
[367113571,1750662707681,-788.62,0.00029041,3]
[367113572,1750662707691,-553.78,0.00029041,3]
[367113573,1750662707700,-1578.33,0.00029041,3]
[367113574,1750662707709,-1107.26,0.00029041,3]
[367113575,1750662707719,-498.97,0.00029041,3]
[367113576,1750662707728,-7394.17,0.00029041,3]
[367113577,1750662707737,-1624.99,0.00029041,3]
[367113578,1750662707747,-490.0,0.00029041,3]
[367113579,1750662707756,-490.0,0.00029041,3]
[367113580,1750662707766,-1036.64,0.00029041,3]
[367113581,1750662707775,-490.0,0.00029041,3]
[367113582,1750662707785,-500.0,0.00029041,3]
[367113583,1750662707795,-2834.49,0.00029041,3]
[367113584,1750662707804,-12536.04,0.00029041,3]
[367113585,1750662707814,-3543.99,0.00029041,3]
[367113586,1750662707824,-490.0,0.00029041,3]
[367113587,1750662707834,-1768.62,0.00029041,3]
[367113588,1750662707844,-490.0,0.00029041,3]
[367113589,1750662707854,-497.45,0.00029041,3]
[367113590,1750662707866,-490.0,0.00029041,3]
[367113591,1750662707875,-490.0,0.00029041,3]
[367113592,1750662707885,-1947.91,0.00029041,3]
[367113593,1750662707895,-510.26,0.00029041,3]
[367113594,1750662707904,-1619.96,0.00029041,3]
[367113595,1750662707913,-510.41,0.00029041,3]
[367113596,1750662707923,-5190.35,0.00029041,3]
[367113597,1750662707932,-9852.89,0.00029041,3]
[367113598,1750662707942,-490.0,0.00029041,3]
[367113599,1750662707951,-1552.44,0.00029041,3]
[367113600,1750662707960,-814.87,0.00029041,3]
[367113601,1750662707970,-2783.14,0.00029041,3]
[367113602,1750662707979,-1717.08,0.00029041,3]
[367113603,1750662707988,-490.0,0.00029041,3]
[367113604,1750662707998,-2330.84,0.00029041,3]
[367113605,1750662708008,-1630.26,0.00029041,3]
[367113606,1750662708017,-752.02,0.00029041,3]
[367113607,1750662708027,-490.0,0.00029041,3]
[367113608,1750662708036,-1618.67,0.00029041,3]
[367113609,1750662708046,-490.0,0.00029041,3]
[367113610,1750662708055,-1151.97,0.00029041,3]
[367113611,1750662708064,-915.84,0.00029041,3]
[367113612,1750662708073,-1776.65,0.00029041,3]
[367113613,1750662708082,-670.37,0.00029041,3]
[367113614,1750662708092,-3986.65,0.00029041,3]
[367113615,1750662708102,-1960.82,0.00029041,3]
[367113616,1750662708112,-1591.01,0.00029041,3]
[367113617,1750662708123,-6065.53,0.00029041,3]
[367113618,1750662708132,-1605.38,0.00029041,3]
[367113619,1750662708142,-1642.63,0.00029041,3]
[367113620,1750662708152,-798.12,0.00029041,3]
[367113621,1750662708161,-490.0,0.00029041,3]
[367113622,1750662708170,-490.0,0.00029041,3]
[367113623,1750662708180,-1292.66,0.00029041,3]
[367113624,1750662708189,-408.70605097,0.00029041,3]
[367113625,1750662708199,-4219.23,0.00029041,3]
[367113626,1750662708208,-2292.5,0.00029041,3]
[367113627,1750662708217,-2903.63,0.00029041,3]
[367113628,1750662708226,-1562.1,0.00029041,3]
[367113629,1750662708236,-765.43,0.00029041,3]
[367113630,1750662708246,-1872.32,0.00029041,3]
[367113631,1750662708256,-3240.53,0.00029041,3]
[367113632,1750662708265,-492.32,0.00029041,3]
[367113633,1750662708275,-1499.13,0.00029041,3]
[367113634,1750662708285,-1684.89,0.00029041,3]